[Event "POR-chT 1st League 2017"]
[Site "Leiria"]
[Date "2017.07.20"]
[Round "5"]
[White "Santos, Jose Alves"]
[Black "Espineira Gonzalez, Diego"]
[Result "0-1"]
[ECO "C10"]
[WhiteElo "2196"]
[BlackElo "2364"]
[Annotator "NA"]
[PlyCount "114"]
[EventDate "2017.??.??"]
[EventType "team-tourn"]
[EventCountry "POR"]
[SourceTitle "playchess.com"]
[Source "ChessBase"]
[SourceQuality "1"]
[TimeControl "5400+30"]

1. e4 {[%emt 0:02:32]} e6 {[%emt 0:00:06]} 2. d4 {[%emt 0:00:39]} d5 {[%emt 0:00:04]} 3. Nc3 {[%emt 0:00:19]} h6 {[%emt 0:00:11]} 4. Bd3 {[%emt 0:14:28] C10: French with 3 Nc3: Unusual Black 3rd moves and 3...dxe4} (4. e5 c5 5. dxc5 Nc6 6. Nf3 Bxc5 7. Bd3 a6 8. O-O Nge7 9. a3 Ba7 10. h3 O-O 11. Bf4 f5 {0-1 (21) Pichot,A (2532)-Cordova,E (2602) San Salvador 2016}) 4... Nc6 {[%emt 0:00:35]} 5. Nf3 {[%emt 0:01:10]} Nb4 {[%emt 0:00:24]} 6. Be2 {[%emt 0:05:18]} Nf6 {[%emt 0:00:17]} 7. e5 {[%emt 0:02:23]} Ne4 {[%emt 0:00:03]} 8. a3 {[%emt 0:01:18]} Nxc3 {[%emt 0:00:04]} 9. bxc3 {[%emt 0:00:03]} Nc6 {[%emt 0:00:10]} 10. O-O {[%emt 0:00:34]} Na5 {[%emt 0:00:08]} 11. Nd2 {[%emt 0:00:25]} c5 {[%emt 0:01:31]} 12. f4 $146 {[%emt 0:00:58]} Qc7 {[%emt 0:03:05]} 13. Rb1 {[%emt 0:04:30]} Bd7 {[%emt 0:03:58]} 14. Kh1 {[%emt 0:08:53]} O-O-O {[%emt 0:02:56]} 15. Rf3 {[%emt 0:07:16]} c4 {[%emt 0:00:48]} 16. Nf1 {[%emt 0:00:45]} f6 {[%emt 0:05:55]} (16... g6 $15) 17. exf6 {[%emt 0:06:19]} gxf6 {[%emt 0:00:40]} 18. Ne3 {[%emt 0:00:19]} Be8 {[%emt 0:14:09]} 19. Rh3 {[%emt 0:09:09]} Bf7 {[%emt 0:28:25]} 20. f5 $1 {[%emt 0:02:12]} e5 {[%emt 0:01:22]} 21. Ng4 {[%emt 0:00:29]} Qe7 {[%emt 0:05:06]} 22. dxe5 {[%emt 0:04:03]} ({Reject} 22. Nxh6 $6 Bxh6 23. Rxh6 Nc6 $11) 22... fxe5 {[%emt 0:00:40]} 23. Bxh6 {[%emt 0:00:21]} Bxh6 {[%emt 0:05:16]} 24. Nxh6 {[%emt 0:03:43]} Nc6 {[%emt 0:02:02]} 25. Nxf7 {[%emt 0:00:33]} Qxf7 {[%emt 0:00:04]} 26. Rxh8 {[%emt 0:02:34]} Rxh8 {[%emt 0:00:02]} 27. Bg4 {[%emt 0:01:03]} Kc7 {[%emt 0:00:16]} 28. Rb5 {[%emt 0:00:20]} Rd8 {[%emt 0:00:26]} 29. Qf1 {[%emt 0:02:37]} Rd6 {[%emt 0:00:08]} 30. Rb1 {[%emt 0:01:49]} b6 {[%emt 0:00:30]} 31. Re1 {[%emt 0:00:34]} Qf6 {[%emt 0:01:21]} 32. Bh3 {[%emt 0:00:57]} (32. Qf2 $16) 32... e4 {[%emt 0:00:10]} 33. Qf4 {[%emt 0:00:15]} Qxc3 {[%emt 0:00:09]} 34. Rf1 {[%emt 0:00:35]} e3 {[%emt 0:00:28]} 35. Bg4 {[%emt 0:00:36]} Qe5 {[%emt 0:03:37]} 36. f6 {[%emt 0:00:23]} Qxf4 {[%emt 0:00:03]} 37. Rxf4 {[%emt 0:00:02]} Rd8 {[%emt 0:00:06]} 38. f7 {[%emt 0:01:15]} Rf8 $1 {[%emt 0:01:16]} 39. c3 $2 {[%emt 0:00:05]} (39. Kg1 $14 {stays ahead.}) 39... Ne5 {[%emt 0:00:56]} 40. Be2 {[%emt 0:05:08]} Rxf7 {[%emt 0:00:20]} 41. Rxf7+ {[%emt 0:00:02]} Nxf7 {[%emt 0:00:06]} 42. g4 {[%emt 0:00:01]} Kd6 {[%emt 0:00:39]} 43. Kg2 {[%emt 0:00:23]} Ke5 {[%emt 0:00:30]} 44. Kf3 {[%emt 0:00:49]} Ng5+ {[%emt 0:00:28]} 45. Kxe3 {[%emt 0:00:10]} Ne4 {[%emt 0:00:02]} 46. h4 {[%emt 0:03:26]} Nxc3 {[%emt 0:00:05]} 47. Bf1 {[%emt 0:00:35]} d4+ {[%emt 0:00:52]} 48. Kd2 {[%emt 0:00:06]} Ne4+ {[%emt 0:00:39]} 49. Kc2 {[%emt 0:04:32]} b5 {[%emt 0:01:38]} 50. g5 {[%emt 0:01:36]} a5 {[%emt 0:02:13]} 51. g6 {[%emt 0:00:33]} Kf6 {[%emt 0:00:16]} 52. Bg2 {[%emt 0:00:41]} d3+ {[%emt 0:00:13]} 53. Kc1 {[%emt 0:00:36]} Nf2 {[%emt 0:00:46]} 54. Kd2 {[%emt 0:04:20]} b4 {[%emt 0:00:06]} 55. axb4 {[%emt 0:00:44]} axb4 {[%emt 0:00:04]} 56. Bf3 {[%emt 0:01:05]} Kxg6 {[%emt 0:00:12]} 57. Ke3 {[%emt 0:01:13]} b3 $19 {[%emt 0:00:14]} 0-1

[Event "POR-chT 1st League 2017"]
[Site "Leiria"]
[Date "2017.07.20"]
[Round "5"]
[White "Leao, Tiago Miguel Da Sil"]
[Black "Ulyanovskyy, Viktor"]
[Result "1/2-1/2"]
[ECO "C42"]
[WhiteElo "2075"]
[BlackElo "2219"]
[Annotator "NA"]
[PlyCount "69"]
[EventDate "2017.??.??"]
[EventType "team-tourn"]
[EventCountry "POR"]
[SourceTitle "playchess.com"]
[Source "ChessBase"]
[SourceQuality "1"]
[TimeControl "5400+30"]

1. e4 {[%emt 0:05:01]} e5 {[%emt 0:00:06]} 2. Nf3 {[%emt 0:00:55]} Nf6 {[%emt 0:00:07]} 3. Nxe5 {[%emt 0:00:09]} d6 {[%emt 0:00:06]} 4. Nf3 {[%emt 0:00:16]} Nxe4 {[%emt 0:00:06]} 5. Nc3 {[%emt 0:00:04]} Nf6 {[%emt 0:01:54] C42: Petroff Defence: 3 Nxe5 and unusual White 3rd moves} (5... Nxc3 6. dxc3 Be7 7. Be3 Nd7 8. Bd3 O-O 9. Qe2 Re8 10. O-O-O Bf6 11. h4 Nf8 12. Ng5 d5 13. Qh5 g6 14. Qf3 h5 15. Qg3 Bg4 {½-½ (66) Anand,V (2783)-So,W (2810) Leon 2017}) 6. h3 {[%emt 0:01:48]} Be7 {[%emt 0:01:56]} 7. d4 {[%emt 0:00:10]} O-O {[%emt 0:00:12]} 8. Bd3 {[%emt 0:02:58]} a6 {[%emt 0:00:21]} 9. O-O {[%emt 0:01:28]} b5 {[%emt 0:00:13]} 10. Re1 {[%emt 0:06:22]} Bb7 $146 {[%emt 0:03:15]} ({Predecessor:} 10... Nbd7 11. a4 b4 12. Ne2 Bb7 13. Ng3 Re8 14. c4 Bf8 15. Bg5 Rxe1+ 16. Nxe1 {½-½ (70) Schunk,E (2297)-Fiedler,T (2286) Germany 2003}) 11. Qe2 {[%emt 0:08:33]} Re8 {[%emt 0:00:35]} 12. Bg5 {[%emt 0:00:34]} Nbd7 {[%emt 0:00:30]} 13. Bf5 {[%emt 0:15:57]} b4 {[%emt 0:05:46]} (13... g6 $5 {[%cal Rg6f5]} 14. Bxd7 Qxd7 $15) 14. Nb1 {[%emt 0:13:11]} h6 {[%emt 0:07:21]} 15. Be3 {[%emt 0:04:27]} Nd5 {[%emt 0:04:23]} 16. Qd3 {[%emt 0:02:31]} Bf8 {[%emt 0:05:56]} 17. Nbd2 {[%emt 0:01:13]} a5 {[%emt 0:01:38]} 18. Ne4 {[%emt 0:05:44]} g6 {[%emt 0:08:38]} 19. Bxd7 {[%emt 0:12:43]} Qxd7 {[%emt 0:00:10]} 20. c4 {[%emt 0:01:00]} bxc3 {[%emt 0:00:07]} 21. bxc3 {[%emt 0:03:12]} f5 {[%emt 0:04:03]} 22. Ned2 $2 {[%emt 0:02:55] [#]} (22. Ng3 $17) 22... Qf7 $2 {[%emt 0:03:13]} (22... f4 $1 $19 23. Qxg6+ Qg7) 23. Nf1 {[%emt 0:02:05]} Bg7 {[%emt 0:02:32]} 24. Bd2 {[%emt 0:00:59]} Nb6 {[%emt 0:00:35]} 25. Bf4 {[%emt 0:05:50]} a4 {[%emt 0:03:29]} 26. N1d2 {[%emt 0:00:55]} a3 {[%emt 0:02:34]} 27. Qb5 {[%emt 0:01:51]} Rxe1+ {[%emt 0:06:20]} 28. Nxe1 {[%emt 0:00:20]} Bd5 {[%emt 0:03:20]} 29. Bxd6 $1 {[%emt 0:00:19]} Nc4 {[%emt 0:02:10]} 30. Nxc4 {[%emt 0:00:39]} Bxc4 $14 {[%emt 0:00:10]} 31. Qc6 {[%emt 0:00:04]} Bd5 {[%emt 0:03:38]} 32. Qxc7 {[%emt 0:00:20]} Qe6 {[%emt 0:00:15]} 33. Be5 {[%emt 0:01:10]} Bxe5 34. Qxe5 {[%emt 0:00:06]} Qc6 {[%emt 0:03:43]} 35. Qe3 {[%emt 0:00:39]} 1/2-1/2

[Event "POR-chT 1st League 2017"]
[Site "Leiria"]
[Date "2017.07.20"]
[Round "5"]
[White "Tubio Agrasar, Pablo"]
[Black "Silva, Fernando"]
[Result "0-1"]
[ECO "B24"]
[WhiteElo "1988"]
[BlackElo "2249"]
[Annotator "NA"]
[PlyCount "70"]
[EventDate "2017.??.??"]
[EventType "team-tourn"]
[EventCountry "POR"]
[SourceTitle "playchess.com"]
[Source "ChessBase"]
[SourceQuality "1"]
[TimeControl "5400+30"]

1. e4 {[%emt 0:01:56]} c5 {[%emt 0:03:10]} 2. Nc3 {[%emt 0:00:07]} Nc6 {[%emt 0:00:36]} 3. Bb5 {[%emt 0:00:23]} g6 {[%emt 0:00:16]} 4. Bxc6 {[%emt 0:06:06]} bxc6 {[%emt 0:00:54]} 5. f4 {[%emt 0:00:47] B23: Closed Sicilian: Lines without g3} Bg7 {[%emt 0:00:22]} 6. Nf3 {[%emt 0:00:05]} d5 {[%emt 0:08:43]} (6... d6 7. O-O Nh6 8. d3 f5 9. e5 O-O 10. Qe2 Qc7 11. Re1 Nf7 12. Na4 Nd8 13. Bd2 Ne6 14. Qf2 Rb8 15. b3 Rd8 16. Rad1 Rb5 17. Qh4 d5 18. c4 {1-0 (63) Zeng,C (2541)-Wang,Y (2726) China 2015}) 7. e5 {[%emt 0:09:52]} Nh6 {[%emt 0:01:52]} 8. O-O {[%emt 0:00:14]} O-O {[%emt 0:00:49]} 9. b3 {[%emt 0:02:50]} Qa5 $146 {[%emt 0:04:43]} ({Predecessor:} 9... c4 10. bxc4 Ba6 11. d3 dxc4 12. d4 Bc8 {0-1 (27) Turcan,M (2210)-Gazik,I (2410) Topolcianky 1994}) 10. Qe1 {[%emt 0:03:46]} f6 {[%emt 0:05:07]} 11. d3 {[%emt 0:04:26]} Kh8 {[%emt 0:05:22]} (11... fxe5 $14 12. Nxe5 Nf5) 12. Na4 {[%emt 0:04:29]} Qxe1 {[%emt 0:01:15]} 13. Rxe1 {[%emt 0:07:09]} Bg4 {[%emt 0:02:13]} 14. Nh4 {[%emt 0:04:46]} (14. Nd2 $16) 14... fxe5 {[%emt 0:02:40]} 15. fxe5 {[%emt 0:00:22]} Nf7 {[%emt 0:00:41]} 16. h3 {[%emt 0:02:52]} Bc8 {[%emt 0:11:18]} 17. Nf3 {[%emt 0:02:55]} c4 {[%emt 0:00:32]} 18. bxc4 {[%emt 0:04:27]} dxc4 {[%emt 0:00:36]} 19. d4 {[%emt 0:00:02]} Be6 {[%emt 0:02:55]} 20. Ba3 {[%emt 0:04:35]} Rfe8 {[%emt 0:00:25]} 21. c3 {[%emt 0:01:41]} Bd5 {[%emt 0:01:03]} 22. e6 {[%emt 0:08:15]} Nd6 {[%emt 0:00:39]} 23. Ng5 {[%emt 0:00:20]} Kg8 {[%emt 0:04:09]} 24. Nc5 {[%emt 0:04:02]} Nb5 {[%emt 0:04:31]} 25. Bb2 {[%emt 0:00:26]} Rab8 {[%emt 0:00:41]} 26. Rab1 {[%emt 0:02:22]} Nxd4 {[%emt 0:00:23]} 27. Nd7 {[%emt 0:03:28]} ({But not} 27. cxd4 $2 {[#]} Rxb2 $1 {[%mdl 512]} 28. Rxb2 Bxd4+ 29. Rf2 Bxc5 $19) 27... Rxb2 {[%emt 0:02:34]} 28. Rxb2 {[%emt 0:00:23]} Nb5 {[%emt 0:01:37]} 29. Ne5 {[%emt 0:04:08]} Nxc3 {[%emt 0:05:51]} 30. Rc2 {[%emt 0:01:37]} Nb5 {[%emt 0:04:09]} 31. Nxc4 {[%emt 0:01:32]} Nd4 $15 {[%emt 0:00:28]} 32. Rcc1 {[%emt 0:00:19]} h6 {[%emt 0:05:50]} 33. Nf7 {[%emt 0:00:14]} Rb8 {[%emt 0:03:16]} 34. Nfe5 {[%emt 0:01:08]} Bxe5 {[%emt 0:01:35]} 35. Nxe5 {[%emt 0:00:40]} Rb2 {[%emt 0:00:16]} 0-1

[Event "POR-chT 1st League 2017"]
[Site "Leiria"]
[Date "2017.07.20"]
[Round "5"]
[White "Moreira, Bruno Marcio Pascoa"]
[Black "Cavaleiro, Daniel Felipe Costa"]
[Result "0-1"]
[ECO "B06"]
[WhiteElo "1882"]
[BlackElo "2006"]
[Annotator "NA"]
[PlyCount "52"]
[EventDate "2017.??.??"]
[EventType "team-tourn"]
[EventCountry "POR"]
[SourceTitle "playchess.com"]
[Source "ChessBase"]
[SourceQuality "1"]
[TimeControl "5400+30"]

1. e4 {[%emt 0:00:00]} g6 {[%emt 0:00:18]} 2. d4 {[%emt 0:00:19]} Bg7 {[%emt 0:00:49]} 3. c3 {[%emt 0:00:50]} d6 {[%emt 0:02:37]} 4. Nf3 {[%emt 0:02:18]} Nf6 {[%emt 0:03:01]} 5. Bd3 {[%emt 0:04:30]} O-O {[%emt 0:00:46]} 6. O-O {[%emt 0:00:50]} Nc6 {[%emt 0:26:44]} 7. d5 {[%emt 0:16:47]} Ne5 {[%emt 0:03:08]} 8. Nxe5 {[%emt 0:01:10]} dxe5 {[%emt 0:00:02]} 9. c4 {[%emt 0:02:36]} c6 {[%emt 0:06:38]} 10. dxc6 {[%emt 0:16:58]} bxc6 {[%emt 0:00:17]} 11. Nc3 {[%emt 0:05:15]} Qc7 {[%emt 0:06:14]} 12. Qe2 {[%emt 0:02:56]} Nh5 {[%emt 0:01:50]} 13. Be3 {[%emt 0:12:47]} Nf4 {[%emt 0:03:29]} 14. Qc2 {[%emt 0:00:45]} Rd8 {[%emt 0:08:23]} 15. Rfd1 {[%emt 0:00:54]} h5 {[%emt 0:07:13]} 16. f3 {[%emt 0:07:37]} Bh6 {[%emt 0:03:19]} 17. Bf2 {[%emt 0:02:41]} Ne6 {[%emt 0:09:57]} 18. b4 {[%emt 0:03:50]} Nd4 {[%emt 0:03:05]} 19. Qb2 {[%emt 0:02:17]} Rb8 {[%emt 0:01:37]} 20. a4 {[%emt 0:04:28]} Qd6 {[%emt 0:00:25]} 21. Rab1 {[%emt 0:02:40]} Qf6 {[%emt 0:01:19]} 22. Be2 {[%emt 0:04:44]} h4 {[%emt 0:00:26]} 23. Rd3 {[%emt 0:02:07]} Be6 {[%emt 0:01:10]} 24. Qa2 {[%emt 0:00:27]} Kg7 {[%emt 0:02:06]} 25. Bd1 {[%emt 0:00:12]} h3 {[%emt 0:01:10]} 26. g3 {[%emt 0:00:40]} Nxf3+ {[%emt 0:00:19]} 0-1

[Event "POR-chT 1st League 2017"]
[Site "Leiria"]
[Date "2017.07.20"]
[Round "6"]
[White "Trindade, Rui Jorge Rodrigues"]
[Black "Leao, Tiago Miguel Da Sil"]
[Result "0-1"]
[ECO "B78"]
[WhiteElo "2033"]
[BlackElo "2075"]
[Annotator "NA RC"]
[PlyCount "78"]
[EventDate "2017.??.??"]
[EventType "team-tourn"]
[EventCountry "POR"]
[SourceTitle "playchess.com"]
[Source "ChessBase"]
[SourceQuality "1"]
[TimeControl "5400+30"]

{[%evp 28,78,-129,-151,-143,32767,-271,-260,32767,-313,-353,-372,-402,32767,32767,-437,-457,-468,-440,-456,-410,-447,-486,-402,-401,-565,0,0,0,0,0,0,0,0,0,-176,32767,-180,32767,32767,32767,32767,32767,32767,32767,-556,-706,-501,-837,-543,-805,-1184,-542]} 1. e4 {[%emt 0:00:35]} c5 {[%emt 0:02:07]} 2. Nf3 {[%emt 0:00:11]} d6 {[%emt 0:00:06]} 3. d4 {[%emt 0:00:17]} cxd4 {[%emt 0:00:05]} 4. Nxd4 {[%emt 0:00:05]} Nf6 {[%emt 0:00:06]} 5. Nc3 {[%emt 0:00:11]} g6 {[%emt 0:00:06]} 6. Bc4 {[%emt 0:04:24]} Bg7 {[%emt 0:00:33]} 7. Be3 {[%emt 0:01:06]} O-O {[%emt 0:00:08]} 8. f3 {[%emt 0:00:21]} Nc6 {[%emt 0:00:17]} 9. Qd2 {[%emt 0:00:50]} Bd7 {[%emt 0:00:29]} 10. O-O-O {[%emt 0:00:38]} Rc8 {[%emt 0:00:09]} 11. Bb3 {[%emt 0:00:11]} Ne5 {[%emt 0:00:06]} 12. h4 {[%emt 0:01:01]} h5 {[%emt 0:00:07]} 13. g4 {[%emt 0:04:56]} hxg4 {[%emt 0:00:23]} 14. f4 {[%emt 0:04:51] B78: Sicilian Dragon: Yugoslav Attack, 9 Bc4 Bd7 10 0-0-0 Rc8} (14. h5 Nxh5 15. Bh6 e6 16. Bxg7 Kxg7 17. f4 Nc4 18. Bxc4 Rxc4 19. f5 Qf6 20. Nde2 Bc6 21. Kb1 Rh8 22. fxg6 Qxg6 23. Qxd6 Bxe4 {0-1 (44) Belous,V (2573)-Lu,S (2615) Olongapo City 2015}) 14... Nc4 {[%emt 0:04:18]} 15. Bxc4 {[%emt 0:00:52]} Rxc4 {[%emt 0:00:07]} 16. f5 {[%emt 0:01:48] [#]} Rxc3 $1 {[%emt 0:08:36]} 17. Qxc3 {[%emt 0:02:02]} Nxe4 {[%emt 0:00:42]} 18. Qe1 $146 {[%emt 0:03:35]} ({Predecessor:} 18. Qb3 gxf5 19. Qxb7 e5 20. Nc6 Bxc6 21. Qxc6 Qa5 {0-1 (36) Neila Castillo,M (2087)-Martinez Martin,D (2308) Zaragoza 2001}) 18... gxf5 {[%emt 0:07:35]} 19. h5 {[%emt 0:00:49]} e5 {[%emt 0:04:00]} 20. h6 {[%emt 0:03:19]} Bf6 {[%emt 0:00:48]} 21. h7+ {[%emt 0:00:44]} Kh8 {[%emt 0:00:52]} 22. Nb3 {[%emt 0:00:12]} Bc6 {[%emt 0:15:25]} 23. Na5 {[%emt 0:00:30]} d5 {[%emt 0:04:13]} 24. Bh6 {[%emt 0:04:13]} Bg5+ {[%emt 0:13:50]} 25. Kb1 {[%emt 0:00:30]} Re8 {[%emt 0:00:37]} 26. Rh5 {[%emt 0:03:49]} Qf6 $2 {[%emt 0:01:07]} (26... Bxh6 $19 27. Nxc6 bxc6 28. Rxh6 f4) 27. Bxg5 {[%emt 0:00:32]} Nxg5 {[%emt 0:01:37]} 28. Qh4 {[%emt 0:00:21]} Ne4 {[%emt 0:01:22]} 29. Qxf6+ {[%emt 0:00:19]} Nxf6 {[%emt 0:00:01]} 30. Rxf5 {[%emt 0:00:15]} Re6 {[%emt 0:01:06]} 31. Rdf1 $2 {[%emt 0:00:55]} (31. Rh1 $11) 31... Ne4 {[%emt 0:05:50]} 32. Rg1 {[%emt 0:00:28]} Rf6 {[%emt 0:07:31]} 33. Rxe5 {[%emt 0:04:00]} Nd2+ {[%emt 0:02:01]} 34. Kc1 {[%emt 0:00:10]} Nf3 {[%emt 0:00:04]} 35. Rf1 {[%emt 0:00:40]} g3 {[%emt 0:00:35]} 36. Re2 {[%emt 0:09:27]} Nd4 {[%emt 0:01:21]} 37. Ree1 {[%emt 0:01:36]} Rxf1 {[%emt 0:00:21]} 38. Rxf1 {[%emt 0:00:07]} g2 {[%emt 0:00:14]} 39. Re1 {[%emt 0:00:36]} g1=Q $19 {[%emt 0:00:24]} 0-1

[Event "POR-chT 1st League 2017"]
[Site "Leiria"]
[Date "2017.07.21"]
[Round "7"]
[White "Sousa, Andre Ventura"]
[Black "Espineira Gonzalez, Diego"]
[Result "1/2-1/2"]
[ECO "B40"]
[WhiteElo "2368"]
[BlackElo "2364"]
[Annotator "NA"]
[PlyCount "52"]
[EventDate "2017.??.??"]
[EventType "team-tourn"]
[EventCountry "POR"]
[SourceTitle "playchess.com"]
[Source "ChessBase"]
[SourceQuality "1"]
[TimeControl "5400+30"]

1. e4 {[%emt 0:00:00]} c5 {[%emt 0:02:06]} 2. Nf3 {[%emt 0:00:00]} e6 {[%emt 0:00:05]} 3. b3 {[%emt 0:00:31]} a6 {[%emt 0:00:14]} 4. Bb2 {[%emt 0:00:04]} Nc6 {[%emt 0:00:22]} 5. c4 {[%emt 0:00:09]} d5 {[%emt 0:02:34]} 6. exd5 {[%emt 0:00:32]} exd5 {[%emt 0:00:25]} 7. cxd5 {[%emt 0:04:45]} Nb4 {[%emt 0:00:15]} 8. Be2 {[%emt 0:02:06]} Nf6 {[%emt 0:00:34]} 9. O-O {[%emt 0:00:26]} Be7 {[%emt 0:06:35]} 10. d4 {[%emt 0:08:26]} O-O {[%emt 0:02:07]} 11. Nc3 {[%emt 0:00:41]} Nbxd5 {[%emt 0:01:28]} 12. Nxd5 {[%emt 0:07:44]} Nxd5 {[%emt 0:02:47]} 13. dxc5 {[%emt 0:03:49]} Bxc5 {[%emt 0:02:54]} 14. Rc1 {[%emt 0:00:33]} Be7 {[%emt 0:15:27]} 15. Nd4 {[%emt 0:00:18]} Bf6 {[%emt 0:00:18]} 16. Bf3 {[%emt 0:00:24]} Ne7 {[%emt 0:00:06]} 17. Qe2 {[%emt 0:21:00]} Bxd4 {[%emt 0:11:56]} 18. Bxd4 {[%emt 0:00:06]} Qxd4 {[%emt 0:00:05]} 19. Qxe7 {[%emt 0:00:04]} a5 {[%emt 0:10:19]} 20. Rc7 {[%emt 0:09:44]} Be6 {[%emt 0:02:28]} 21. Rxb7 {[%emt 0:00:57]} Qb2 {[%emt 0:00:30]} 22. Rb5 {[%emt 0:05:38]} Rae8 {[%emt 0:00:30]} 23. Qh4 {[%emt 0:02:10]} Qxa2 {[%emt 0:00:34]} 24. Be4 {[%emt 0:02:57]} f5 {[%emt 0:02:59]} 25. Bb1 {[%emt 0:01:56]} Qe2 {[%emt 0:03:37]} 26. Rxa5 {[%emt 0:07:05]} Bxb3 {[%emt 0:00:29]} 1/2-1/2

[Event "POR-chT 1st League 2017"]
[Site "Leiria"]
[Date "2017.07.21"]
[Round "7"]
[White "Lombaers, Peter"]
[Black "Cavaleiro, Daniel Felipe Costa"]
[Result "1-0"]
[ECO "E47"]
[WhiteElo "2327"]
[BlackElo "2006"]
[Annotator "NA"]
[PlyCount "83"]
[EventDate "2017.??.??"]
[EventType "team-tourn"]
[EventCountry "POR"]
[SourceTitle "playchess.com"]
[Source "ChessBase"]
[SourceQuality "1"]
[TimeControl "5400+30"]

1. d4 {[%emt 0:00:00]} Nf6 {[%emt 0:00:09]} 2. c4 {[%emt 0:00:00]} e6 {[%emt 0:00:07]} 3. Nc3 {[%emt 0:00:00]} Bb4 {[%emt 0:00:14]} 4. e3 {[%emt 0:00:00]} O-O {[%emt 0:00:28]} 5. Bd3 {[%emt 0:00:00]} c5 {[%emt 0:00:55]} 6. Nf3 {[%emt 0:00:00]} cxd4 {[%emt 0:02:07]} 7. exd4 {[%emt 0:00:06]} d5 {[%emt 0:01:47]} 8. O-O {[%emt 0:00:12]} h6 {[%emt 0:00:32]} 9. a3 {[%emt 0:11:09]} dxc4 {[%emt 0:06:14]} 10. Bxc4 {[%emt 0:00:33]} Be7 {[%emt 0:02:59]} 11. Qd3 {[%emt 0:07:58]} Bd7 {[%emt 0:06:43]} 12. Bb3 {[%emt 0:06:46]} Bc6 {[%emt 0:03:25]} 13. Ne5 {[%emt 0:01:15]} Nbd7 {[%emt 0:14:23]} 14. Nxc6 {[%emt 0:02:15]} bxc6 {[%emt 0:00:04]} 15. Rd1 {[%emt 0:01:26]} Nb6 {[%emt 0:01:32]} 16. Bf4 {[%emt 0:08:19]} Bd6 {[%emt 0:04:43]} 17. Bxd6 {[%emt 0:01:01]} Qxd6 {[%emt 0:00:07]} 18. Rac1 {[%emt 0:02:19]} Rfd8 {[%emt 0:01:47]} 19. Bc2 {[%emt 0:01:44]} Nbd5 {[%emt 0:07:11]} 20. Na4 {[%emt 0:01:14]} Qf4 {[%emt 0:02:46]} 21. h3 {[%emt 0:08:12]} Qg5 {[%emt 0:01:06]} 22. Qf3 {[%emt 0:10:11]} Rab8 {[%emt 0:03:27]} 23. Bb1 {[%emt 0:02:14]} Nf4 {[%emt 0:01:21]} 24. Rc5 {[%emt 0:06:51]} N6d5 {[%emt 0:01:21]} 25. b4 {[%emt 0:06:15]} Rd6 {[%emt 0:01:48]} 26. Kh2 {[%emt 0:07:24]} f5 {[%emt 0:01:53]} 27. g3 {[%emt 0:01:59]} Nh5 {[%emt 0:04:35]} 28. Nb2 {[%emt 0:00:44]} Rf8 {[%emt 0:01:08]} 29. Nc4 {[%emt 0:01:15]} Rdd8 {[%emt 0:03:56]} 30. Ne5 {[%emt 0:00:41]} f4 {[%emt 0:03:01]} 31. g4 {[%emt 0:00:14]} Nhf6 {[%emt 0:00:35]} 32. Rxc6 {[%emt 0:02:05]} h5 {[%emt 0:02:14]} 33. gxh5 {[%emt 0:00:33]} Qxh5 {[%emt 0:05:33]} 34. Qxh5 {[%emt 0:01:54]} Nxh5 {[%emt 0:00:06]} 35. Bg6 {[%emt 0:02:36]} Ne7 {[%emt 0:02:06]} 36. Bxh5 {[%emt 0:00:14]} Nxc6 {[%emt 0:00:01]} 37. Nxc6 {[%emt 0:00:06]} Rd6 {[%emt 0:00:32]} 38. Bf3 {[%emt 0:00:17]} a6 {[%emt 0:01:26]} 39. a4 {[%emt 0:00:09]} Kf7 {[%emt 0:00:20]} 40. b5 {[%emt 0:00:17]} axb5 {[%emt 0:00:29]} 41. axb5 {[%emt 0:00:03]} Rc8 {[%emt 0:00:48]} 42. Rb1 {[%emt 0:00:34]} 1-0

[Event "POR-chT 1st League 2017"]
[Site "Leiria"]
[Date "2017.07.21"]
[Round "7"]
[White "Figuero Toro, Julian Francisco"]
[Black "Trigo Urquijo, Sergio"]
[Result "0-1"]
[ECO "C95"]
[WhiteElo "2314"]
[BlackElo "2389"]
[Annotator "NA"]
[PlyCount "210"]
[EventDate "2017.??.??"]
[EventType "team-tourn"]
[EventCountry "POR"]
[SourceTitle "playchess.com"]
[Source "ChessBase"]
[SourceQuality "1"]
[TimeControl "5400+30"]

1. e4 e5 2. Nf3 Nc6 3. Bb5 a6 4. Ba4 Nf6 5. O-O Be7 6. Re1 b5 7. Bb3 d6 8. c3 O-O 9. h3 Nb8 10. d4 Nbd7 11. Nbd2 Bb7 12. Bc2 Re8 13. Nf1 Bf8 14. Ng3 g6 15. Bg5 h6 16. Bd2 c5 17. d5 c4 18. b4 cxb3 19. axb3 Qc7 20. Ra2 Nc5 21. Qe2 Bc8 22. c4 bxc4 23. Qxc4 Qb7 24. Qc3 Ncd7 25. Rea1 Nb8 26. Bd3 Re7 27. Bc4 Rc7 28. Qd3 Bd7 29. Ne1 Be8 30. Qe2 Nfd7 31. Nc2 Nb6 32. Bd3 N6d7 33. Nb4 Nc5 34. Bc4 Qb6 35. Ra3 Rca7 36. Nd3 Nxd3 37. Bxd3 Rb7 38. Be3 Qb4 39. Nf1 Bb5 40. Bxb5 Qxb5 41. Qxb5 Rxb5 42. Nd2 Kg7 43. Nc4 Be7 44. Kf1 h5 45. Ke2 Kf8 46. Kd2 Ke8 47. Kc3 Kd8 48. Ra4 Kc7 49. Na5 Kd7 50. Rc4 Bd8 51. Rca4 Bb6 52. Bxb6 Rxb6 53. Nc4 Rb5 54. b4 Ra7 55. Ra5 Rab7 56. R1a4 Rc7 57. Ra1 Ke7 58. R5a4 h4 59. Kd3 Rcb7 60. Na5 Rc7 61. R1a3 f5 62. f3 fxe4+ 63. fxe4 Rc1 64. Rc3 Rg1 65. Rc2 Rd1+ 66. Ke3 Rb1 67. Rc4 Kd7 68. Kf3 Rf1+ 69. Kg4 Rf2 70. g3 hxg3 71. Kxg3 Rb2 72. Kh4 Ke7 73. Kg3 Kd7 74. Kh4 Ke7 75. Nc6+ Kf6 76. Kg4 Rg2+ 77. Kf3 Rb2 78. h4 Kg7 79. Rc3 Rh2 80. Kg3 Re2 81. Rc4 Rb2 82. Nd8 Kh6 83. Ne6 Rb3+ 84. Kg2 Kh5 85. Nf8 Rb7 86. Rc8 R7xb4 87. Rxb4 Rxb4 88. Rd8 Rb6 89. Kg3 Rb3+ 90. Kg2 Rb6 91. Kg3 a5 92. Ne6 Rb3+ 93. Kf2 a4 94. Rh8+ Kg4 95. Rh6 a3 96. Rxg6+ Kxh4 97. Rg1 a2 98. Ra1 Ra3 99. Ke2 Nd7 100. Ng7 Nc5 101. Nf5+ Kg4 102. Nxd6 Nb3 103. Nc4 Nxa1 104. Nxa3 Nb3 105. Nc2 Nd4+ 0-1